Cogmind - Beta 15 --- EXPLORER MODE // 2025.07.11 @ 15:44:26 Player: Karp Result: Destroyed by EP-H1N(R) with Subdweller Beam Cannon Performance ------------- Evolutions (0) 0 Regions Visited (2) 400 Robots Destroyed (2) 10 Value Destroyed (81) 81 Prototype IDs (0) 0 Alien Tech Used (0) 0 Bonus (0) 0 TOTAL SCORE: 491 Bonus ------- None Cogmind --------- Core Integrity 0/250 Matter 300/300 Energy 98/100 System Corruption 0% Temperature Cool (16) Movement Core (200) Ox3 Location -10/Subcaves Parts ------- > --- POWER (1) -------- (None) > --- PROPULSION (2) --- (None) > --- UTILITY (3) ------ Medium Storage Unit Targeting Computer > --- WEAPON (2) ------- (None) > --- INVENTORY (10) --- (None) Peak State ------------ > --- POWER ------------ Light Nuclear Core > --- PROPULSION ------- Aluminum Leg Aluminum Leg > --- UTILITY ---------- Medium Storage Unit Terrain Scanner Targeting Computer > --- WEAPON ----------- Light Assault Rifle Light Assault Rifle > --- INVENTORY -------- Sensor Array Assault Rifle [Rating: 10] Favorites ----------- Power Light Ion Engine Engine Light Ion Engine Power Core Light Nuclear Core Propulsion Aluminum Leg Leg Aluminum Leg Utility Targeting Computer Device Terrain Scanner Storage Medium Storage Unit Processor Targeting Computer Weapon Light Assault Rifle Ballistic Gun Light Assault Rifle Build | -11 -10 -10 ------- Run | Yrd Mat Sub Slots Evolved 1 | . 1 . Power . | . . . Propulsion . | . . . Utility 1 | . 1 . Weapon . | . . . Parts Attached 11 | 7 4 . Power 3 | 1 2 . Engine 2 | 1 1 . Core 1 | . 1 . Reactor . | . . . Propulsion 2 | 2 . . Treads . | . . . Leg 2 | 2 . . Wheel . | . . . Hover . | . . . Flight . | . . . Utility 3 | 2 1 . Device 1 | . 1 . Storage 1 | 1 . . Processor 1 | 1 . . Hackware . | . . . Protection . | . . . Artifact . | . . . Weapon 3 | 2 1 . Energy Gun . | . . . Energy Cannon . | . . . Ballistic Gun 3 | 2 1 . Ballistic Cannon . | . . . Launcher . | . . . Special Weapon . | . . . Impact Weapon . | . . . Slashing Weapon . | . . . Piercing Weapon . | . . . Special Melee Weapon . | . . . Unidentified Prototypes . | . . . Parts Lost 7 | . 1 6 Power 2 | . 1 1 Propulsion 2 | . . 2 Utility 1 | . . 1 Weapon 2 | . . 2 Highest Loss Streak 6 | . 1 6 To Critical Strikes . | . . . Average Backups 2 | 1 2 4 Power . | . . . Propulsion . | . . . Utility 1 | . . 1 Weapon 1 | . 1 1 Tool/Special . | . . . Unused Backups 6 | 1 1 4 Power 1 | 1 . . Propulsion 2 | . 1 1 Utility 2 | . . 2 Weapon 1 | . . 1 Tool/Special . | . . . Average Slot Usage (%) 98 | . 99 97 Engine 10 | . 9 11 Core 1 | . 2 . Leg 24 | . 25 23 Device 12 | . 12 12 Storage 12 | . 12 12 Processor 12 | . 12 12 Ballistic Gun 24 | . 25 23 Peak Build Rating 10 | 7 10 8 Average Rating 7 | 6 8 7 On Entrance 5 | . 7 8 Naked Turns . | . . . Heaviest Build 19 | 15 19 17 Greatest Support 20 | 20 20 20 Greatest Overweight (x) 1 | . . 1 Average Overweight (x) . | . . . Largest Inventory Capacity 10 | 10 10 10 Average Capacity 9 | 8 10 10 Most Carried 5 | 3 4 5 Average Carried 2 | 1 2 4 Final Capacity 10 | 10 10 10 Final Carried 3 | 2 3 . Class Distribution -------------------- 100% | Hacker-Mutant Dominant Class ---------------- Hacker-Mutant | -10/Materials Hacker-Mutant | -10/Subcaves Resources | -11 -10 -10 ----------- Run | Yrd Mat Sub Matter Collected 333 | 164 159 10 Remotely . | . . . Salvage Created 91 | . 91 . Parts 4 | . 4 . Haulers Intercepted . | . . . Recyclers Shooed . | . . . Parts Field Recycled . | . . . Retrieved Matter . | . . . Parts Self-Destructed . | . . . Prevented . | . . . Kills | -11 -10 -10 ------- Run | Yrd Mat Sub Combat Hostiles Destroyed 2 | . 2 . Guns 2 | . 2 . Classes Destroyed 1 | . 1 . Grunt 2 | . 2 . Best Kill Streak 2 | . 2 . Combat Bots Only 2 | . 2 . Max Kills in Single Turn 1 | . 1 . Gunslinging . | . . . Exploded . | . . . Melee . | . . . Uniques/NPCs Destroyed . | . . . Combat | -11 -10 -10 -------- Run | Yrd Mat Sub Hostile Shots Fired 98 | . 26 72 Missed 32 | . 5 27 Hits 66 | . 21 45 Projectile 66 | . 21 45 AOE 2 | . . 2 Critical Strikes 1 | . . 1 Damage Taken 823 | . 169 654 Core 253 | . 14 239 Absorbed by Shields . | . . . Ignored by Resistances 491 | . 104 387 Core Remaining (%) 100 | 100 . . Volleys Fired 14 | . 14 . Largest 2 | . 2 . Hottest 40 | . 40 . Shots Fired 28 | . 28 . Gun 28 | . 28 . Cannon . | . . . Launcher . | . . . Special . | . . . Kinetic 28 | . 28 . Thermal . | . . . Explosive . | . . . Electromagnetic . | . . . Robot Hit Streak 20 | . 20 . Robot Miss Streak 1 | . 1 . Penetration Max . | . . . Secondary Targets 1 | . 1 . Max Gunslinging Chain 1 | . 1 . Shots Hit Robots 20 | . 20 . Core Hits 7 | . 7 . Critical Kills . | . . . Critical Parts Destroyed 1 | . 1 . Critical Strikes 1 | . 1 . Destroy 1 | . 1 . Melee Attacks . | . . . Impact . | . . . Slashing . | . . . Piercing . | . . . Sneak Attacks . | . . . Combat Hostiles . | . . . Follow-up Attacks . | . . . Damage Inflicted 155 | . 155 . Guns 155 | . 155 . Cannons . | . . . Explosions . | . . . Melee . | . . . Ramming . | . . . Kinetic 155 | . 155 . Thermal . | . . . Explosive . | . . . Electromagnetic . | . . . Impact . | . . . Slashing . | . . . Piercing . | . . . Highest Corruption . | . . . Average Corruption . | . . . Corruption Purged . | . . . Corruption Blocked . | . . . Overload Shots . | . . . Overflow Damage . | . . . Projectiles . | . . . Explosions . | . . . Melee . | . . . Knockbacks . | . . . Impact . | . . . Kinetic . | . . . Secondary . | . . . Self-Inflicted Damage . | . . . Shots . | . . . Rammed . | . . . Targets Rammed . | . . . Kicked . | . . . Crushed . | . . . Highest Temperature 34 | . 34 . Average Temperature 15 | . 15 . Received Heat Transfer 297 | . 162 135 Siege Activations . | . . . Martial Activations . | . . . Shielding Activations . | . . . Robots Disrupted . | . . . Combat Hostiles . | . . . Robots Corrupted . | . . . Combat Hostiles . | . . . Parts Fried . | . . . Impact Corruptions . | . . . Robots Melted . | . . . Combat Hostiles . | . . . Parts Melted . | . . . Heat Transferred . | . . . Parts Sabotaged . | . . . Parts Stolen . | . . . Parts Stripped . | . . . Power Chain Reactions . | . . . Alert | -11 -10 -10 ------- Run | Yrd Mat Sub Maximum Alert Level . | . . . Low Security (%) 100 | 100 100 . Level 1 . | . . . Level 2 . | . . . Level 3 . | . . . Level 4 . | . . . Level 5 . | . . . High Security . | . . . Max Security . | . . . Peak Influence 50 | . 50 . Initial . | . . . Average 4 | . 6 . Influence Increases 50 | . 50 . Destroy 0b10 Robot/C 40 | . 40 . Destroy Leader 10 | . 10 . Influence Decreases 50 | . 50 . Time Decay 50 | . 50 . Squads Dispatched . | . . . Investigation . | . . . Extermination . | . . . Reinforcement . | . . . Assault . | . . . Garrison . | . . . Intercept . | . . . Searches Triggered . | . . . Construction Impeded . | . . . Haulers Reinforced . | . . . Active Scanning Responses . | . . . Cargo Convoy Interrupts . | . . . Stealth | -11 -10 -10 --------- Run | Yrd Mat Sub Distress Signals . | . . . Communications Jammed . | . . . Distress Signals . | . . . Times Spotted 12 | . 2 10 Peak Tracking Total 8 | . 2 8 Tactical Retreats . | . . . Traps | -11 -10 -10 ------- Run | Yrd Mat Sub Traps Triggered 2 | . 2 . Indirectly . | . . . Trap Hack Attempts . | . . . Triggered . | . . . Disarmed . | . . . Reprogrammed . | . . . Reused . | . . . Traps Extracted . | . . . Installed . | . . . Triggered . | . . . Machines | -11 -10 -10 ---------- Run | Yrd Mat Sub Machines Disabled . | . . . Max in Single Turn . | . . . Machines Repaired . | . . . Machines Dismantled . | . . . Machines Sabotaged . | . . . Overloaded Fab Kills . | . . . Hacking | -11 -10 -10 --------- Run | Yrd Mat Sub Machines Accessed . | . . . Terminals . | . . . Fabricators . | . . . Repair Stations . | . . . Recycling Units . | . . . Scanalyzers . | . . . Garrison Access . | . . . Total Hacks . | . . . Successful . | . . . Failed . | . . . Catastrophic . | . . . Database Lockouts . | . . . Manual . | . . . Terminals . | . . . Fabricators . | . . . Repair Stations . | . . . Recycling Units . | . . . Scanalyzers . | . . . Garrison Access . | . . . Terminal Hacks . | . . . Fabricator Hacks . | . . . Repair Station Hacks . | . . . Recycling Unit Hacks . | . . . Scanalyzer . | . . . Garrison Access Hacks . | . . . Unauthorized Hacks . | . . . Terminals . | . . . Fabricators . | . . . Repair Stations . | . . . Recycling Units . | . . . Scanalyzers . | . . . Garrison Access . | . . . Data Cores Recovered . | . . . Used . | . . . Hacking Detections . | . . . Full Trace Events . | . . . Feedback Events . | . . . Feedback Blocked . | . . . Robot Schematics Acquired . | . . . Robots Built . | . . . Authchips . | . . . Time . | . . . Total Robot Build Rating . | . . . Part Schematics Acquired . | . . . Parts Built . | . . . Authchips . | . . . Time . | . . . Total Part Build Rating . | . . . Parts Repaired . | . . . Time . | . . . Parts Recycled . | . . . Recycled Matter . | . . . Retrieved Matter . | . . . Retrieved Components . | . . . Parts Scanalyzed . | . . . Part Schematics Acquired . | . . . Parts Damaged . | . . . Bothacking | -11 -10 -10 ------------ Run | Yrd Mat Sub Used RIF Installer . | . . . Robots Hacked . | . . . Non-combat . | . . . Combat . | . . . Robot Hacks Applied . | . . . Relay Couplers Released . | . . . Fabnet Peak Effective % . | . . . Robots Rewired . | . . . Allies Hacked . | . . . Hacks Repelled . | . . . Allies | -11 -10 -10 -------- Run | Yrd Mat Sub Total Allies . | . . . Largest Group . | . . . Highest-Rated Group . | . . . Highest-Rated Ally . | . . . Total Orders . | . . . Ally Attacks . | . . . Total Damage . | . . . Kills . | . . . Allies Corrupted . | . . . Allies Melted . | . . . Intel | -11 -10 -10 ------- Run | Yrd Mat Sub Active Infowar (turns) 446 | . 237 209 Terrain 446 | . 237 209 Robot Analysis Total . | . . . Derelict Logs Recovered 2 | . . 2 Drone Launches . | . . . Drone Recoveries . | . . . Exploration | -11 -10 -10 ------------- Run | Yrd Mat Sub Turns Passed 535 | 83 237 215 Spaces Moved 390 | 60 160 170 Core 3 | 3 . . Treads . | . . . Legs 387 | 57 160 170 Wheels . | . . . Hover . | . . . Flight . | . . . Fastest Speed 50 | 50 120 120 Average Speed 121 | 116 120 123 Slowest Speed 190 | 120 120 190 Overloaded Moves . | . . . Propulsion Burnouts . | . . . Robots Hopped . | . . . Potential Cave-ins . | . . . Cave-ins Triggered . | . . . Exploration Rate (%) 16 | 4 29 16 Regions Visited 2 Branch Regions 1 Pre-discovered Areas 2 | . . 2 Known Exits Taken 2 | 1 1 . Unknown Exits Taken . | . . . Scrap Searched . | . . . Spaces Dug . | . . . Terrain Destroyed . | . . . Melee . | . . . Projectile . | . . . AOE . | . . . Terrain Rammed . | . . . Walls Destroyed . | . . . Machines Disabled . | . . . Actions | -11 -10 -10 --------- Run | Yrd Mat Sub Total 430 | 70 182 178 Wait 1 | . . 1 Move 388 | 59 159 170 Hop . | . . . Pick Up 8 | 3 3 2 Fast Attach 9 | 7 2 . Attach 1 | . 1 . Detach . | . . . Swap 1 | . 1 . Drop 8 | 1 2 5 Fire 14 | . 14 . Melee . | . . . Ram . | . . . Kick . | . . . Crush . | . . . Escape Stasis . | . . . Rewire . | . . . Trap . | . . . Miscellaneous . | . . . Route ------- -11/Scrapyard -10/Materials (discovered 2 exits: *Min / *Sub) -10/Subcaves (discovered 1 exit: *Mat) History --------- Turn | Location | Event 10 | -11/Scrapyard | Identified exit to Materials 10 | -11/Scrapyard | Discovered exit to Materials (range 15) 84 | -11/Scrapyard | Entered Materials 84 | -10/Materials | Evolved 1 slot: Utility x1 189 | -10/Materials | Identified exit to Subcaves 189 | -10/Materials | Discovered exit to Subcaves (range 7) 282 | -10/Materials | Identified exit to Mines 282 | -10/Materials | Discovered exit to Mines (range 7) 314 | -10/Materials | Build established: Hacker-Mutant 321 | -10/Materials | Entered Subcaves 322 | -10/Subcaves | Approached by a straggling Scientist 347 | -10/Subcaves | Identified exit to Materials 347 | -10/Subcaves | Discovered exit to Materials (range 11) 463 | -10/Subcaves | Learned location of Zion (-6) 473 | -10/Subcaves | A swath of the cavern ceiling suddenly collapsed 481 | -10/Subcaves | A Subdweller sparked back to life 481 | -10/Subcaves | A Subdweller sparked back to life 481 | -10/Subcaves | A Subdweller sparked back to life 495 | -10/Subcaves | Ambushed by swarm of Subdwellers 526 | -10/Subcaves | Core integrity fell below 50% 535 | -10/Subcaves | Core integrity fell below 20% 536 | -10/Subcaves | Destroyed by EP-H1N(R) with Subdweller Beam Cannon Last Messages --------------- move. PO-XS8(R) creaks and sparks as it begins to move. OD-S33(R) creaks and sparks as it begins to move. HV Slug penetrates Twisted Machinery. EH-ETE(h) destroyed. N3-P4C(R) emerges from the Twisted Machinery. Aluminum Leg destroyed. Lgt. Assault Rifle destroyed. Dropped Aluminum Leg. Dropped Sub. Optics. Dropped Sensor Array. Dropped Sub. Beam Cannon. Lgt. Ion Engine destroyed. Dropped Lgt. Assault Rifle. AY-Y96(R) suffers critical hit (Destroy). Terrain Scanner destroyed. Assault Rifle destroyed. Aluminum Leg destroyed. Map ----- +----------------------------------------------------+ | ??????????????????????????????????????????? | | ??????????????????????????????????????????? | | ??????????????????????????????????????????? | | ??????????????????????????????????????????? | | ??????????????????????????????????????????? | | ??????????????????????????????????????????? | | ??????????????????????????????????????????? | | ?????????????????????????????#????????????? | | ???????????#???????????????? #????????????? | | ??????????????????????????? #????????????? | | ?????????????????????????? #????????????? | | ?????????????????????#?#? ?????????????? | | ???????????????????## ## ???????????????? | | ??????????????????## ????????????????? | | ????????????##????# "?????????????????? | | ??????????????????# # #???????? ?????????? | | ??????????????????# #???????????????????? | | ??????????????????# #???????????????????? | | ??????????????????# ##???????????????????? | | ????????????????### ##???????????????????? | | ????????????????# #???????????????????? | | ???????????##???# R #???????????????????? | | ????????????#???##RRR##?? ??? ????????????? | | ?????#??????????## R##??? ? ???#??????????? | | ???????????????## ##? ??????????????????? | | ??????????????## @ ##???????????????????? | | ??????????????# ] ##??????????????????? | | ??????????????#[=! R #???##?????????????? | | ??????????????##! #??????#???????????? | | ???????????????# ##??????????????????? | | ???????????????## R ##???????????????????? | | ???????????#????##; R###??????????????????? | | ????????????????### #####?? ????????????? | | ??????????????### ""#?" ???????????? | | ??????#??????#?# #""# # # ???????????? | | ???????????#???# # #"# ?????????? | | ???????????????# <% ##""# ?????????? | | ???????????????# ! &# #???????????????? | | ?????????##????## ####???????????????? | | ??????????????### ""#???????????????? | | ??????????????# " ##"# #??????????? | | ??????????????## ###??# ####??????????? | | ??????????????# "###????????????????????? | | ??????????????## #?????? ???????????????? | | ????????#?????# ##????? #???????????????? | | ??????????????## #???? ##??????????????? | | ??????????????# #?### #??????????????? | | ??????????????# ### #???????????????? | | ????????#?????# #? ##??#???????????? | | ??????????????# ## #??????????????? | +----------------------------------------------------+ Best States ------------- Heat Dissipation 25 Energy Generation 14 Energy Capacity 160 Matter Stores 300 Matter Capacity 300 Sight Range 16 Terrain Scan Range 14 Terrain Scan Density 10 Resistance: KI 35 Resistance: TH 35 Resistance: EX 35 Resistance: EM 35 Resistance: I 35 Resistance: S 35 Resistance: P 35 Evasion (%) 55 Targeting Accuracy 5 Offensive Hacking 20 Item Schematics ----------------- None Robot Schematics ------------------ None Fabricated ------------ Nothing Repaired ---------- Nothing Alien Tech Used ----------------- None Achievements -------------- None Challenges ------------ None Game ------ Seed OvertunedFocalNeutralizer Manual? 0 Play Time 00:08:53 Cumulative 10.3 hours Start 2025.07.11 @ 15:35:38 End 2025.07.11 @ 15:44:26 Sessions 1 Manual Loads 0 Difficulty Explorer Special Mode None Game No. 17 Rogue 0 Adventurer 2 Explorer 15 Win Type - Total 0 Types 0/0/0/0/0/0/0/0/0/0 Lore% 12 Gallery% 14 Achievement% 18 Wizard Run 0 Options --------- Layout 1 ASCII 0 Keyboard 0 Movement Numpad Keybinds 0 Fullscreen 1 Font 32/SmallcapsGlow Map View 50x35 Zoom Use 0% Tactical HUD 0 Map Filters NONE Filters NONE Steam 1 RUN: d4470d96-6326-402e-a5c6-efb8691b3ceb